fUST/lending_fUST_20240418
["ID","MTS","AMOUNT","RATE_DAILY","PERIOD"]
[322832171,1713375038615,-498.8613407,0.000299,2]
[322832172,1713375038627,-498.8613407,0.000299,2]
[322832173,1713375038636,-498.8613407,0.000299,2]
[322832174,1713375038645,-498.8613407,0.000299,2]
[322832175,1713375038654,-498.8613407,0.000299,2]
[322832176,1713375038663,-498.8613407,0.000299,2]
[322832177,1713375038673,-498.8613407,0.000299,2]
[322832178,1713375038684,-498.8613407,0.000299,2]
[322832179,1713375038694,-498.8613407,0.000299,2]
[322832180,1713375038704,-620.00011602,0.00029938,2]
[322832181,1713375038713,-166.666666,0.00029962,2]
[322832182,1713375038722,-107232.09522328,0.0003,5]
[322832183,1713375038732,-79155.04824508,0.0003,2]
[322832184,1713375038744,-4156.32529796,0.0003,2]
[322832193,1713375040375,-513.01492201,0.0003,2]
[322832194,1713375040394,-32460.90494526,0.0003,2]
[322832195,1713375040408,-207167.59416375,0.0003,2]
[322832196,1713375040419,-154.84515485,0.0003,2]
[322832197,1713375040431,-1832.47502662,0.0003,2]
[322832198,1713375040442,-576.00236236,0.0003,2]
[322832199,1713375040452,-5594.34889524,0.0003,7]
[322832200,1713375040462,-154.84515485,0.0003,4]
[322832201,1713375040471,-154.84515485,0.0003,4]
[322832202,1713375040480,-154.84515485,0.0003,4]
[322832203,1713375040490,-240.0,0.0003,2]
[322832204,1713375040499,-5000.0,0.00030026,2]
[322832205,1713375040509,-417.0,0.00030096,2]
[322832206,1713375040518,-150.0,0.00030136,2]
[322832207,1713375040527,-208.5631992,0.00030137,2]
[322832208,1713375040536,-5151.0,0.000302,4]
[322832209,1713375040546,-7518.91104748,0.00030274,10]
[322832210,1713375040555,-166.666666,0.00030603,2]
[322832211,1713375040564,-320.4553623,0.000308,10]
[322832212,1713375040573,-1961.92360376,0.00031,2]
[322832213,1713375040583,-150.0,0.00031136,2]
[322832214,1713375040592,-1254.45193756,0.00031185,5]
[322832215,1713375040601,-587.0,0.00031314,2]
[322832216,1713375040610,-620.0000058,0.00031434,2]
[322832217,1713375040620,-191.18536531,0.00032,4]
[322832218,1713375040630,-5000.0,0.00032,2]
[322832219,1713375040639,-1332.00133201,0.00032,3]
[322832220,1713375040649,-150.0,0.00032136,2]
[322832221,1713375040658,-54099.7343,0.00032159,30]
[322832222,1713375040667,-1005.0,0.000327,5]
[322832223,1713375040676,-400.0,0.00032877,2]
[322832224,1713375040689,-5200.0,0.000329,9]
[322832225,1713375040698,-1254.45193756,0.00032952,6]
[322832226,1713375040708,-4500.0,0.00033,2]
[322832227,1713375040717,-240.0,0.00033,2]
[322832228,1713375040726,-240.0,0.00033,2]
[322832229,1713375040735,-620.00000029,0.00033006,2]
[322832230,1713375040746,-417.0,0.00033096,2]
[322832231,1713375040755,-404.632497,0.00033165,2]
[322832232,1713375040764,-216.452318,0.00033165,2]
[322832233,1713375040774,-543.716042,0.00033165,2]
[322832234,1713375040783,-5000.0,0.00033183,2]
[322832235,1713375040792,-3999.75123629,0.00033232,2]
[322832236,1713375040801,-156.6192828,0.0003332,2]
[322832237,1713375040810,-1781.32,0.00033332,2]
[322832238,1713375040819,-1781.32,0.00033332,2]
[322832239,1713375040828,-1781.32,0.00033332,2]
[322832240,1713375040837,-1781.32,0.00033332,2]
[322832241,1713375040845,-1781.32,0.00033332,2]
[322832242,1713375040854,-1781.32,0.00033332,2]
[322832243,1713375040863,-1781.32,0.00033332,2]
[322832244,1713375040872,-1781.32,0.00033332,2]
[322832245,1713375040882,-1781.32,0.00033332,2]
[322832246,1713375040891,-1781.32,0.00033332,2]
[322832247,1713375040900,-113076.75178582,0.00033333,7]
[322832248,1713375040920,-261979.05679172,0.00033333,7]
[322832249,1713375041026,-411287.29262022,0.00033333,7]
[322832250,1713375041035,-586.0,0.000336,2]
[322832251,1713375041045,-2000.0,0.000337,7]
[322832252,1713375041054,-2000.0,0.000337,7]
[322832253,1713375041064,-2000.0,0.000337,7]
[322832254,1713375041073,-1351.51924304,0.00033996,4]
[322832255,1713375041082,-465.62426375,0.00034,4]
[322832256,1713375041091,-1234.64783511,0.00034,2]
[322832257,1713375041100,-91520.98396728,0.00034,60]
[322832258,1713375041109,-672.3817,0.00034159,30]
[322832259,1713375041118,-823.0,0.00034445,2]
[322832260,1713375041127,-9878.30913613,0.00034555,10]
[322832261,1713375041136,-620.00000001,0.00034657,2]
[322832262,1713375041149,-2000.0,0.000347,8]
[322832263,1713375041158,-2000.0,0.000347,8]
[322832264,1713375041168,-2000.0,0.000347,8]
[322832265,1713375041177,-6021.3215278,0.000347,2]
[322832266,1713375041190,-1254.45193756,0.0003472,7]
[322832267,1713375041199,-5000.0,0.00034797,2]
[322832268,1713375041210,-1000.0,0.000348,3]
[322832269,1713375041220,-1000.0,0.000348,3]
[322832270,1713375041229,-2237.21233694,0.0003488,120]
[322832271,1713375041238,-312.0,0.0003497,35]
[322832272,1713375041247,-6530.0,0.0003497,35]
[322832273,1713375041256,-150.5,0.0003497,35]
[322832274,1713375041265,-312.0,0.0003498,35]
[322832275,1713375041275,-6530.0,0.0003498,35]
[322832276,1713375041284,-150.5,0.0003498,35]
[322832277,1713375041293,-154.0,0.0003498,35]
[322832278,1713375041302,-312.0,0.0003499,35]
[322832279,1713375041312,-6530.0,0.0003499,35]
[322832280,1713375041322,-150.5,0.0003499,35]
[322832281,1713375041331,-154.0,0.0003499,35]
[322832282,1713375041340,-853.2124065,0.00035,2]
[322832283,1713375041349,-214.26513963,0.00035,4]
[322832284,1713375041359,-9516.05268297,0.00035,30]
[322832285,1713375041368,-4848.21770199,0.00035,5]
[322832286,1713375041377,-1572.52037217,0.00035,4]
[322832287,1713375041386,-156.69534723,0.00035,30]
[322832288,1713375041395,-6874.43086894,0.00035,4]
[322832289,1713375041405,-187840.31669215,0.00035,30]
[322832290,1713375041414,-1000.0,0.00035,2]
[322832291,1713375041423,-1634.452336,0.00035,2]
[322832292,1713375041435,-1634.452336,0.00035,2]
[322832293,1713375041444,-151.0,0.00035,2]
[322832294,1713375041453,-193.587288,0.00035,2]
[322832295,1713375041462,-216.0,0.00035,2]
[322832296,1713375041471,-193.587288,0.00035,2]
[322832297,1713375041480,-151.0,0.00035,2]
[322832298,1713375041489,-151.0,0.00035,2]
[322832299,1713375041498,-151.826602,0.00035,2]
[322832300,1713375041508,-1452.151719,0.00035,2]
[322832301,1713375041517,-1452.151719,0.00035,2]
[322832302,1713375041526,-1429.475741,0.00035,2]
[322832303,1713375041535,-1429.475741,0.00035,2]
[322832304,1713375041544,-1429.475741,0.00035,2]
[322832305,1713375041553,-1429.475741,0.00035,2]
[322832306,1713375041562,-188.855264,0.00035,2]
[322832307,1713375041571,-188.855264,0.00035,2]
[322832308,1713375041582,-188.855264,0.00035,2]
[322832309,1713375041591,-188.855264,0.00035,2]
[322832310,1713375041600,-151.0,0.00035,2]
[322832311,1713375041609,-151.0,0.00035,2]
[322832312,1713375041618,-151.0,0.00035,2]
[322832313,1713375041627,-152.874669,0.00035,2]
[322832314,1713375041635,-484.283907,0.00035,2]
[322832315,1713375041644,-484.283907,0.00035,2]
[322832316,1713375041653,-484.283907,0.00035,2]
[322832317,1713375041662,-484.283907,0.00035,2]
[322832318,1713375041672,-832.280203,0.00035,2]
[322832319,1713375041684,-832.280203,0.00035,2]
[322832320,1713375041693,-7262.530974,0.00035,2]
[322832321,1713375041702,-7262.530974,0.00035,2]
[322832322,1713375041711,-7262.530974,0.00035,2]
[322832323,1713375041722,-7262.530974,0.00035,2]
[322832324,1713375041732,-1797.386927,0.00035,2]
[322832325,1713375041742,-1797.386927,0.00035,2]
[322832326,1713375041751,-1797.386927,0.00035,2]
[322832327,1713375041760,-1797.386927,0.00035,2]
[322832328,1713375041771,-832.280203,0.00035,2]
[322832329,1713375041780,-832.280203,0.00035,2]
[322832330,1713375041789,-151.0,0.00035,2]
[322832331,1713375041798,-151.0,0.00035,2]
[322832332,1713375041807,-151.0,0.00035,2]
[322832333,1713375041817,-158.870567,0.00035,2]
[322832334,1713375041826,-151.0,0.00035,2]
[322832335,1713375041835,-151.0,0.00035,2]
[322832336,1713375041845,-151.0,0.00035,2]
[322832337,1713375041854,-151.0,0.00035,2]
[322832338,1713375041863,-1145.723036,0.00035,2]
[322832339,1713375041873,-1145.723036,0.00035,2]
[322832340,1713375041882,-1145.723036,0.00035,2]
[322832341,1713375041892,-1145.723036,0.00035,2]
[322832342,1713375041901,-174.476352,0.00035,2]
[322832343,1713375041911,-174.476352,0.00035,2]
[322832344,1713375041920,-174.476352,0.00035,2]
[322832345,1713375041931,-174.476352,0.00035,2]
[322832346,1713375041940,-151.0,0.00035,2]
[322832347,1713375041950,-151.0,0.00035,2]
[322832348,1713375041959,-151.0,0.00035,2]
[322832349,1713375041969,-151.0,0.00035,2]
[322832350,1713375041978,-151.0,0.00035,2]
[322832351,1713375041988,-151.0,0.00035,2]
[322832352,1713375041999,-151.0,0.00035,2]
[322832353,1713375042009,-289.834412,0.00035,2]
[322832354,1713375042018,-1122.530758,0.00035,2]
[322832355,1713375042027,-1122.530758,0.00035,2]
[322832356,1713375042037,-1122.530758,0.00035,2]
[322832357,1713375042046,-1122.530758,0.00035,2]
[322832358,1713375042056,-151.0,0.00035,2]
[322832359,1713375042065,-151.0,0.00035,2]
[322832360,1713375042075,-151.0,0.00035,2]
[322832361,1713375042084,-151.0,0.00035,2]
[322832362,1713375042094,-151.0,0.00035,2]
[322832363,1713375042103,-151.0,0.00035,2]
[322832364,1713375042113,-739.82184036,0.000351,2]
[322832365,1713375042123,-160.459809,0.00035225,2]
[322832366,1713375042133,-853.21,0.000354,2]
[322832367,1713375042145,-3532.68101549,0.00035455,14]
[322832368,1713375042155,-157.04962732,0.00035613,4]
[322832369,1713375042164,-154.84515485,0.00035616,4]
[322832370,1713375042174,-565.30346311,0.00035616,2]
[322832371,1713375042184,-400.0,0.00035616,2]
[322832372,1713375042193,-1703.333066,0.00035616,120]
[322832373,1713375042202,-2000.0,0.000357,9]
[322832374,1713375042212,-2000.0,0.000357,9]
[322832375,1713375042221,-2000.0,0.000357,9]
[322832376,1713375042230,-150.5,0.00035754,35]
[322832377,1713375042240,-154.0,0.00035754,35]
[322832378,1713375042249,-312.0,0.00035754,35]
[322832379,1713375042259,-6530.0,0.00035754,35]
[322832380,1713375042268,-150.5,0.00035764,35]
[322832381,1713375042279,-174.93,0.00035764,35]
[322832382,1713375042288,-154.0,0.00035764,35]
[322832383,1713375042298,-312.0,0.00035764,35]
[322832384,1713375042307,-6530.0,0.00035764,35]
[322832385,1713375042317,-312.0,0.00035764,35]
[322832386,1713375042326,-6530.0,0.00035764,35]
[322832387,1713375042335,-150.5,0.00035774,35]
[322832388,1713375042345,-150.5,0.00035774,35]
[322832389,1713375042355,-154.0,0.00035774,35]
[322832390,1713375042364,-312.0,0.00035774,35]
[322832391,1713375042374,-6530.0,0.00035774,35]
[322832392,1713375042383,-312.0,0.00035774,35]
[322832393,1713375042392,-6530.0,0.00035774,35]
[322832394,1713375042401,-151.0,0.00035784,2]
[322832395,1713375042410,-151.0,0.00035784,2]
[322832396,1713375042419,-151.0,0.00035784,2]
[322832397,1713375042430,-292.75121,0.00035784,2]
[322832398,1713375042439,-1452.151719,0.00035784,2]
[322832399,1713375042448,-1452.151719,0.00035784,2]
[322832400,1713375042457,-1452.151719,0.00035784,2]
[322832401,1713375042466,-1452.151719,0.00035784,2]
[322832402,1713375042475,-1452.151719,0.00035784,2]
[322832403,1713375042485,-1452.151719,0.00035784,2]
[322832404,1713375042495,-1452.151719,0.00035784,2]
[322832405,1713375042504,-1452.151719,0.00035784,2]
[322832406,1713375042513,-1452.151719,0.00035784,2]
[322832407,1713375042522,-1452.151719,0.00035784,2]
[322832408,1713375042531,-1452.151719,0.00035784,2]
[322832409,1713375042541,-1452.151719,0.00035784,2]
[322832410,1713375042550,-1452.151719,0.00035784,2]
[322832411,1713375042559,-1452.151719,0.00035784,2]
[322832412,1713375042647,-1452.151719,0.00035784,2]
[322832413,1713375042657,-1452.151719,0.00035784,2]
[322832414,1713375042666,-1452.151719,0.00035784,2]
[322832415,1713375042675,-1452.151728,0.00035784,2]
[322832416,1713375042687,-1429.475741,0.00035784,2]
[322832418,1713375042696,-1429.475741,0.00035784,2]
[322832420,1713375042706,-1429.475741,0.00035784,2]
[322832421,1713375042715,-1429.475741,0.00035784,2]
[322832422,1713375042724,-1429.475741,0.00035784,2]
[322832423,1713375042733,-1429.475741,0.00035784,2]
[322832424,1713375042742,-1429.475741,0.00035784,2]
[322832426,1713375042751,-1429.475741,0.00035784,2]
[322832428,1713375042761,-1429.475741,0.00035784,2]
[322832430,1713375042770,-1429.475741,0.00035784,2]
[322832432,1713375042780,-1429.475741,0.00035784,2]
[322832434,1713375042790,-1429.475741,0.00035784,2]
[322832436,1713375042798,-1429.475741,0.00035784,2]
[322832438,1713375042808,-1429.475741,0.00035784,2]
[322832441,1713375042817,-1429.475741,0.00035784,2]
[322832444,1713375042826,-1429.475739,0.00035784,2]
[322832447,1713375042835,-188.855264,0.00035784,2]
[322832450,1713375042844,-188.855264,0.00035784,2]
[322832452,1713375042853,-188.855264,0.00035784,2]
[322832454,1713375042863,-188.855264,0.00035784,2]
[322832456,1713375042872,-188.855264,0.00035784,2]
[322832457,1713375042881,-188.855264,0.00035784,2]
[322832458,1713375042890,-188.855264,0.00035784,2]
[322832459,1713375042900,-188.855264,0.00035784,2]
[322832460,1713375042909,-188.855264,0.00035784,2]
[322832461,1713375042919,-188.855264,0.00035784,2]
[322832463,1713375042931,-188.855264,0.00035784,2]
[322832465,1713375042940,-188.855264,0.00035784,2]
[322832467,1713375042951,-188.855264,0.00035784,2]
[322832469,1713375042960,-188.855264,0.00035784,2]
[322832471,1713375042970,-188.855264,0.00035784,2]
[322832473,1713375042980,-188.855269,0.00035784,2]
[322832476,1713375042990,-151.0,0.00035784,2]
[322832478,1713375042999,-151.0,0.00035784,2]
[322832480,1713375043008,-151.0,0.00035784,2]
[322832483,1713375043017,-151.0,0.00035784,2]
[322832486,1713375043027,-151.0,0.00035784,2]
[322832488,1713375043036,-199.942651,0.00035784,2]
[322832490,1713375043045,-484.283907,0.00035784,2]
[322832492,1713375043054,-484.283907,0.00035784,2]
[322832494,1713375043064,-484.283907,0.00035784,2]
[322832496,1713375043073,-484.283907,0.00035784,2]
[322832497,1713375043083,-484.283907,0.00035784,2]
[322832498,1713375043093,-484.283907,0.00035784,2]
[322832499,1713375043102,-484.283907,0.00035784,2]
[322832500,1713375043111,-484.283907,0.00035784,2]
[322832501,1713375043120,-484.283907,0.00035784,2]
[322832502,1713375043130,-484.283907,0.00035784,2]
[322832503,1713375043140,-484.283907,0.00035784,2]
[322832504,1713375043151,-484.283907,0.00035784,2]
[322832505,1713375043160,-484.283907,0.00035784,2]
[322832506,1713375043169,-484.283907,0.00035784,2]
[322832507,1713375043179,-484.283907,0.00035784,2]
[322832508,1713375043189,-484.283913,0.00035784,2]
[322832509,1713375043199,-832.280203,0.00035784,2]
[322832510,1713375043208,-832.280203,0.00035784,2]
[322832511,1713375043218,-832.280203,0.00035784,2]
[322832512,1713375043227,-832.280203,0.00035784,2]
[322832513,1713375043236,-832.280203,0.00035784,2]
[322832514,1713375043245,-832.280203,0.00035784,2]
[322832515,1713375043255,-832.280203,0.00035784,2]
[322832516,1713375043264,-7262.530974,0.00035784,2]
[322832517,1713375043273,-7262.530974,0.00035784,2]
[322832518,1713375043283,-7262.530974,0.00035784,2]
[322832519,1713375043292,-7262.530974,0.00035784,2]
[322832520,1713375043301,-7262.530974,0.00035784,2]
[322832521,1713375043311,-7262.530974,0.00035784,2]
[322832522,1713375043320,-7262.530974,0.00035784,2]
[322832523,1713375043329,-7262.530974,0.00035784,2]
[322832524,1713375043338,-7262.530974,0.00035784,2]
[322832525,1713375043347,-7262.530974,0.00035784,2]
[322832526,1713375043356,-7262.530974,0.00035784,2]
[322832527,1713375043365,-7262.530974,0.00035784,2]
[322832528,1713375043375,-7262.530974,0.00035784,2]
[322832529,1713375043385,-7262.530974,0.00035784,2]
[322832530,1713375043394,-7262.530974,0.00035784,2]
[322832531,1713375043403,-1797.386927,0.00035784,2]
[322832532,1713375043412,-7262.53097,0.00035784,2]
[322832533,1713375043422,-1797.386927,0.00035784,2]
[322832534,1713375043431,-1797.386927,0.00035784,2]
[322832535,1713375043441,-1797.386927,0.00035784,2]
[322832536,1713375043450,-1797.386927,0.00035784,2]
[322832537,1713375043460,-1797.386927,0.00035784,2]
[322832538,1713375043468,-1797.386927,0.00035784,2]
[322832539,1713375043478,-1797.386927,0.00035784,2]
[322832540,1713375043487,-1797.386927,0.00035784,2]
[322832541,1713375043496,-1797.386927,0.00035784,2]
[322832542,1713375043505,-1797.386927,0.00035784,2]
[322832543,1713375043515,-1797.386927,0.00035784,2]
[322832544,1713375043524,-1797.386927,0.00035784,2]
[322832545,1713375043533,-1797.386927,0.00035784,2]
[322832546,1713375043542,-832.280203,0.00035784,2]
[322832548,1713375043551,-1797.386927,0.00035784,2]
[322832550,1713375043560,-1797.38692312,0.00035784,2]
[322832552,1713375043569,-832.280203,0.00035784,2]
[322832554,1713375043579,-832.280203,0.00035784,2]
[322832556,1713375043587,-832.280203,0.00035784,2]
[322832558,1713375043597,-832.280203,0.00035784,2]
[322832560,1713375043605,-832.280203,0.00035784,2]
[322832562,1713375043614,-832.280203,0.00035784,2]
[322832564,1713375043623,-832.280203,0.00035784,2]
[322832566,1713375043632,-832.280209,0.00035784,2]
[322832568,1713375043641,-151.0,0.00035784,2]
[322832570,1713375043650,-151.0,0.00035784,2]
[322832573,1713375043659,-151.0,0.00035784,2]
[322832577,1713375043668,-151.0,0.00035784,2]
[322832580,1713375043677,-151.0,0.00035784,2]
[322832585,1713375043688,-151.0,0.00035784,2]
[322832590,1713375043697,-151.0,0.00035784,2]
[322832592,1713375043706,-151.0,0.00035784,2]
[322832596,1713375043715,-151.0,0.00035784,2]
[322832600,1713375043725,-151.0,0.00035784,2]
[322832602,1713375043735,-151.0,0.00035784,2]
[322832605,1713375043744,-151.0,0.00035784,2]
[322832607,1713375043752,-151.0,0.00035784,2]
[322832608,1713375043762,-151.0,0.00035784,2]
[322832609,1713375043771,-151.0,0.00035784,2]
[322832610,1713375043781,-151.0,0.00035784,2]
[322832611,1713375043790,-151.0,0.00035784,2]
[322832612,1713375043799,-151.0,0.00035784,2]
[322832613,1713375043808,-151.0,0.00035784,2]
[322832614,1713375043817,-151.0,0.00035784,2]
[322832615,1713375043826,-151.0,0.00035784,2]
[322832616,1713375043836,-151.0,0.00035784,2]
[322832617,1713375043845,-181.277758,0.00035784,2]
[322832618,1713375043854,-1145.723036,0.00035784,2]
[322832619,1713375043864,-1145.723036,0.00035784,2]
[322832620,1713375043873,-1145.723036,0.00035784,2]
[322832621,1713375043883,-1145.723036,0.00035784,2]
[322832622,1713375043892,-1145.723036,0.00035784,2]
[322832623,1713375043901,-1145.723036,0.00035784,2]
[322832624,1713375043910,-1145.723036,0.00035784,2]
[322832625,1713375043919,-1145.723036,0.00035784,2]
[322832626,1713375043929,-1145.723036,0.00035784,2]
[322832627,1713375043938,-1145.723036,0.00035784,2]
[322832628,1713375043947,-1145.723036,0.00035784,2]
[322832629,1713375043957,-1145.723036,0.00035784,2]
[322832630,1713375043966,-174.476352,0.00035784,2]
[322832631,1713375043975,-1145.723036,0.00035784,2]
[322832632,1713375043985,-174.476352,0.00035784,2]
[322832633,1713375043994,-1145.723036,0.00035784,2]
[322832634,1713375044003,-174.476352,0.00035784,2]
[322832635,1713375044013,-1145.723036,0.00035784,2]
[322832636,1713375044022,-174.476352,0.00035784,2]
[322832637,1713375044031,-1145.723033,0.00035784,2]
[322832638,1713375044040,-174.476352,0.00035784,2]
[322832639,1713375044050,-174.476352,0.00035784,2]
[322832640,1713375044059,-174.476352,0.00035784,2]
[322832641,1713375044146,-174.476352,0.00035784,2]
[322832642,1713375044159,-174.476352,0.00035784,2]
[322832643,1713375044169,-174.476352,0.00035784,2]
[322832644,1713375044179,-174.476352,0.00035784,2]
[322832645,1713375044189,-174.476352,0.00035784,2]
[322832646,1713375044199,-174.476352,0.00035784,2]
[322832647,1713375044208,-174.476352,0.00035784,2]
[322832648,1713375044218,-174.476352,0.00035784,2]
[322832649,1713375044228,-174.476346,0.00035784,2]
[322832650,1713375044238,-151.0,0.00035784,2]
[322832651,1713375044247,-151.0,0.00035784,2]
[322832652,1713375044256,-151.0,0.00035784,2]
[322832653,1713375044266,-151.0,0.00035784,2]
[322832654,1713375044276,-243.79793,0.00035784,2]
[322832655,1713375044286,-151.0,0.00035784,2]
[322832656,1713375044295,-225.878864,0.00035784,2]
[322832657,1713375044305,-1122.530758,0.00035784,2]
[322832658,1713375044315,-1122.530758,0.00035784,2]
[322832659,1713375044324,-1122.530758,0.00035784,2]
[322832660,1713375044333,-1122.530758,0.00035784,2]
[322832661,1713375044343,-151.0,0.00035784,2]
[322832662,1713375044352,-151.0,0.00035784,2]
[322832663,1713375044362,-151.0,0.00035784,2]
[322832664,1713375044371,-215.488571,0.00035784,2]
[322832665,1713375044381,-151.0,0.00035784,2]
[322832666,1713375044390,-151.0,0.00035784,2]
[322832667,1713375044400,-1403.85889105,0.00035798,3]
[322832668,1713375044410,-34026.37003565,0.00035799,2]
[322832669,1713375044419,-300.0,0.00035799,2]
[322832670,1713375044428,-780.21552537,0.00035799,2]
[322832671,1713375044438,-286.15424676,0.00035799,2]
[322832672,1713375044447,-4081.97578927,0.00035799,2]
[322832673,1713375044456,-315.04578671,0.00035799,2]
[322832674,1713375044466,-280.73215166,0.00035799,2]
[322832675,1713375044476,-150.0,0.00035799,2]
[322832676,1713375044485,-9927.10326088,0.00035799,2]
[322832677,1713375044494,-2704.34494632,0.00035799,2]
[322832678,1713375044503,-151.76512492,0.00035799,2]
[322832679,1713375044512,-27870.63320947,0.00035799,2]
[322832680,1713375044521,-468.4042953,0.00035799,2]
[322832681,1713375044531,-430.10127611,0.00035799,2]
[322832682,1713375044540,-3007.52055954,0.00035799,2]
[322832683,1713375044550,-1001.98281673,0.00035799,2]
[322832684,1713375044559,-16444.92564208,0.00035799,2]
[322832685,1713375044568,-250.0,0.00035799,7]
[322832686,1713375044577,-250.0,0.00035799,14]
[322832687,1713375044586,-250.0,0.00035799,21]
[322832688,1713375044596,-250.0,0.00035799,28]
[322832689,1713375044605,-1189.55717908,0.00035799,14]
[322832690,1713375044614,-224.15530397,0.00035799,10]
[322832691,1713375044627,-2863.57196121,0.00035799,2]
[322832692,1713375044636,-29426.55677205,0.00035799,2]
[322832693,1713375044645,-6393.58565527,0.00035799,120]
[322832694,1713375044654,-7305.31667383,0.00035799,2]
[322832695,1713375044663,-500.0,0.00035799,40]
[322832696,1713375044672,-500.0,0.00035799,40]
[322832697,1713375044684,-500.0,0.00035799,40]
[322832698,1713375044693,-500.0,0.00035799,40]
[322832699,1713375044702,-500.0,0.00035799,40]
[322832700,1713375044711,-500.0,0.00035799,40]
[322832701,1713375044720,-500.0,0.00035799,40]
[322832702,1713375044729,-500.0,0.00035799,40]
[322832703,1713375044739,-250.50480372,0.00035799,40]
[322832704,1713375044748,-19199.601001,0.00035799,10]
[322832705,1713375044757,-86295.89265302,0.00035799,2]
[322832706,1713375044767,-278.94570963,0.00035799,30]
[322832707,1713375044776,-36020.28123543,0.00035799,2]
[322832708,1713375044785,-377.37248519,0.00035799,40]
[322832709,1713375044795,-585.98663152,0.00035799,40]
[322832710,1713375044804,-500.0,0.00035799,40]
[322832711,1713375044812,-500.0,0.00035799,40]
[322832712,1713375044822,-500.0,0.00035799,40]
[322832713,1713375044831,-221.02025908,0.00035799,40]
[322832714,1713375044840,-217.72642742,0.00035799,40]
[322832715,1713375044850,-500.0,0.00035799,40]
[322832716,1713375044859,-538.18727778,0.00035799,40]
[322832717,1713375044868,-503.24499837,0.00035799,40]
[322832718,1713375044877,-506.38196034,0.00035799,40]
[322832719,1713375044886,-500.0,0.00035799,40]
[322832720,1713375044895,-500.0,0.00035799,40]
[322832721,1713375044905,-500.0,0.00035799,40]
[322832722,1713375044914,-500.0,0.00035799,40]
[322832723,1713375044923,-500.0,0.00035799,40]
[322832724,1713375044934,-500.0,0.00035799,40]
[322832725,1713375044943,-500.0,0.00035799,40]
[322832726,1713375044953,-500.0,0.00035799,40]
[322832727,1713375044962,-500.0,0.00035799,40]
[322832728,1713375044971,-500.0,0.00035799,40]
[322832729,1713375044981,-500.29559767,0.00035799,40]
[322832730,1713375044990,-196.62167409,0.00035799,40]
[322832731,1713375044999,-501.80676353,0.00035799,40]
[322832732,1713375045008,-500.0,0.00035799,40]
[322832733,1713375045017,-500.0,0.00035799,40]
[322832734,1713375045026,-510.49381479,0.00035799,40]
[322832735,1713375045035,-500.0,0.00035799,40]
[322832736,1713375045044,-500.0,0.00035799,40]
[322832737,1713375045053,-500.0,0.00035799,40]
[322832738,1713375045062,-500.0,0.00035799,40]
[322832739,1713375045072,-500.0,0.00035799,40]
[322832740,1713375045081,-500.0,0.00035799,40]
[322832741,1713375045090,-500.0,0.00035799,40]
[322832742,1713375045099,-500.0,0.00035799,40]
[322832743,1713375045108,-500.0,0.00035799,40]
[322832744,1713375045117,-267.13531128,0.00035799,40]
[322832745,1713375045127,-500.0,0.00035799,40]
[322832746,1713375045137,-500.0,0.00035799,40]
[322832747,1713375045150,-500.0,0.00035799,40]
[322832748,1713375045160,-500.0,0.00035799,40]
[322832749,1713375045169,-338.83918712,0.00035799,40]
[322832750,1713375045179,-500.0,0.00035799,40]
[322832751,1713375045190,-503.99999999,0.00035799,40]
[322832752,1713375045198,-500.0,0.00035799,40]
[322832753,1713375045208,-500.0,0.00035799,40]
[322832754,1713375045217,-500.0,0.00035799,40]
[322832755,1713375045227,-500.0,0.00035799,40]